bitfinex-derivatives/quotes_BNBF0:USTF0_20250810
["timestamp","ask_amount","ask_price","bid_price","bid_amount"]
[1754808656425,0.21505576,810.06,809.93,1.10868145]
[1754808657424,0.21505576,810.06,809.94,1.10868145]
[1754808658629,0.21505576,810.06,809.93,1.10868145]
[1754808659127,0.21505576,810.06,809.92,1.10868145]
[1754808660029,0.21505576,810.06,808.45,1.491]
[1754808660030,0.21505576,810.06,809.93,1.10868145]
[1754808660727,0.21505576,810.06,809.08,2.75971933]
[1754808660728,0.21505576,810.06,809.95,1.10868145]
[1754808662127,0.21505576,810.06,809.96,1.10868145]
[1754808662331,0.21505576,810.06,809.97,1.10868145]
[1754808663033,0.21505576,810.06,809.95,1.10868145]
[1754808663228,0.21505576,810.06,809.91,1.10868145]
[1754808663428,0.21505576,810.06,809.93,1.10868145]
[1754808664129,0.21505576,810.06,809.91,1.10868145]
[1754808664433,0.21505576,810.06,809.93,1.10868145]
[1754808664633,0.21505576,810.06,809.95,1.10868145]
[1754808665434,0.21505576,810.06,809.96,1.10868145]
[1754808665634,0.21505576,810.06,809.94,1.10868145]
[1754808666335,0.21505576,810.06,809.95,1.10868145]
[1754808666531,0.21505576,810.06,809.93,1.10868145]
[1754808667233,0.21505576,810.06,809.95,1.10868145]
[1754808667933,0.21505576,810.06,809.92,1.10868145]
[1754808668335,0.21505576,810.06,809.93,1.10868145]
[1754808669333,0.21505576,810.06,809.94,1.10868145]
[1754808670436,0.21505576,810.06,809.77,1.66242961]
[1754808670437,0.21505576,810.06,809.95,1.10868145]
[1754808671339,0.21505576,810.06,809.96,1.10868145]
[1754808672236,0.21505576,810.06,809.97,1.10868145]
[1754808673332,0.21505576,810.06,809.98,1.10868145]
[1754808674334,0.21505576,810.06,809.99,1.10868145]
[1754808675336,0.21505576,810.06,810.01,1.10868145]
[1754808675534,0.21505576,810.06,810.03,1.10868145]
[1754808676233,0.21505576,810.06,809.23,2.75971933]
[1754808676234,0.21505576,810.06,810.04,1.10868145]
[1754808676537,0.21505576,810.06,809.93,1.66242961]
[1754808676936,0.21505576,810.06,809.94,1.66242961]
[1754808677332,0.21505576,810.06,809.95,1.66242961]
[1754808678141,0.21505576,810.06,809.97,1.66242961]
[1754808678437,0.21505576,810.06,810.03,1.66242961]
[1754808678640,0.21505576,810.06,810.03,1.10557964]
[1754808679238,0.21505576,810.06,809.51,2.75971933]
[1754808679840,0.21505576,810.06,809.5,2.75971933]
[1754808680838,0.21505576,810.06,809.51,2.75971933]
[1754808681440,0.21505576,810.06,809.5,2.75971933]
[1754808682636,0.5,810.01,809.29,2.75971933]
[1754808683439,0.5,810.01,809.32,2.75971933]
[1754808684537,0.5,810.01,809.36,2.75971933]
[1754808685141,0.5,810.01,809.39,2.75971933]
[1754808685642,0.5,810.01,809.07,3.86360707]
[1754808685643,0.5,810.01,809.25,2.75971933]
[1754808685942,0.5,810.01,809.26,1.08079814]
[1754808686239,0.5,810.01,809.27,1.08079814]
[1754808686444,0.21505576,810.06,809.28,1.08079814]
[1754808686646,0.21505576,810.06,809.29,1.08079814]
[1754808686845,0.21505576,810.06,809.3,1.08079814]
[1754808687049,0.21505576,810.06,809.31,1.08079814]
[1754808687245,0.21505576,810.06,809.32,1.08079814]
[1754808687543,0.21505576,810.06,809.33,1.08079814]
[1754808687743,0.21505576,810.06,809.34,1.08079814]
[1754808687943,0.21505576,810.06,809.35,1.08079814]
[1754808688144,0.21505576,810.06,809.36,1.08079814]
[1754808688448,0.21505576,810.06,809.37,1.08079814]
[1754808688645,0.21505576,810.06,809.38,1.08079814]
[1754808688846,0.21505576,810.06,809.39,1.08079814]
[1754808689045,0.21505576,810.06,809.4,1.08079814]
[1754808689244,0.21505576,810.06,809.41,1.08079814]
[1754808689446,0.21505576,810.06,809.42,1.08079814]
[1754808689745,0.21505576,810.06,809.43,1.08079814]
[1754808689943,0.21505576,810.06,809.44,1.08079814]
[1754808690146,0.21505576,810.06,809.45,1.08079814]
[1754808690345,0.21505576,810.06,809.46,1.08079814]
[1754808690547,0.21505576,810.06,809.47,1.08079814]
[1754808690747,0.21505576,810.06,809.48,1.08079814]
[1754808690951,0.21505576,810.06,809.49,1.08079814]
[1754808691147,0.21505576,810.06,809.5,1.08079814]
[1754808691352,0.21505576,810.06,809.15,2.75971933]
[1754808691550,0.21505576,810.06,809.16,1.08004735]
[1754808691751,0.21505576,810.06,809.17,1.08004735]
[1754808692050,0.21505576,810.06,809.18,1.08004735]
[1754808692251,0.21505576,810.06,809.19,1.08004735]
[1754808692450,0.21505576,810.06,809.2,1.08004735]
[1754808692748,0.21505576,810.06,809.21,1.08004735]
[1754808692947,0.21505576,810.06,809.22,1.08004735]
[1754808693152,0.21505576,810.06,809.23,1.08004735]
[1754808693453,0.21505576,810.06,809.24,1.08004735]
[1754808693647,0.21505576,810.06,809.25,1.08004735]
[1754808693847,0.21505576,810.06,809.29,2.75971933]
[1754808694149,0.21505576,810.06,809.3,1.08004735]
[1754808694347,0.21505576,810.06,809.31,1.08004735]
[1754808694651,0.21505576,810.06,809.32,1.08004735]
[1754808694851,0.21505576,810.06,809.33,1.08004735]
[1754808695045,0.21505576,810.06,809.34,1.08004735]
[1754808695248,0.21505576,810.06,809.35,1.08004735]
[1754808695449,0.21505576,810.06,809.36,1.08004735]
[1754808695651,0.21505576,810.06,809.37,1.08004735]
[1754808695852,0.21505576,810.06,809.38,1.08004735]
[1754808696049,0.21505576,810.06,809.39,1.08004735]
[1754808696251,0.21505576,810.06,809.4,1.08004735]
[1754808696455,0.21505576,810.06,809.41,1.08004735]
[1754808696755,0.21505576,810.06,809.42,1.08004735]
[1754808697054,0.21505576,810.06,809.43,1.08004735]
[1754808697354,0.21505576,810.06,809.44,1.08004735]
[1754808697552,0.21505576,810.06,809.45,1.08004735]
[1754808697851,0.21505576,810.06,809.46,1.08004735]
[1754808698052,0.21505576,810.06,809.47,1.08004735]
[1754808698252,0.21505576,810.06,809.48,1.08004735]
[1754808698453,0.21505576,810.06,809.49,1.08004735]
[1754808698653,0.21505576,810.06,809.5,1.08004735]
[1754808698955,0.21505576,810.06,809.3,2.75971933]
[1754808699155,0.21505576,810.06,809.31,1.0790949]
[1754808699355,0.21505576,810.06,809.32,1.0790949]
[1754808699552,0.21505576,810.06,809.33,1.0790949]
[1754808699752,0.21505576,810.06,809.34,1.0790949]
[1754808699956,0.21505576,810.06,809.35,1.0790949]
[1754808700156,0.21505576,810.06,809.36,1.0790949]
[1754808700357,0.21505576,810.06,809.37,1.0790949]
[1754808700558,0.21505576,810.06,809.38,1.0790949]
[1754808700759,0.21505576,810.06,809.39,1.0790949]
[1754808700956,0.21505576,810.06,809.4,1.0790949]
[1754808701160,0.21505576,810.06,809.41,1.0790949]
[1754808701360,0.21505576,810.06,809.42,1.0790949]
[1754808701556,0.21505576,810.06,809.43,1.0790949]
[1754808701755,0.21505576,810.06,809.44,1.0790949]
[1754808701960,0.21505576,810.06,809.45,1.0790949]
[1754808702161,0.21505576,810.06,809.46,1.0790949]
[1754808702456,0.21505576,810.06,809.24,2.75971933]
[1754808702457,0.21505576,810.06,810.05,1.66439988]
[1754808703060,0.21505576,810.06,809.23,2.75971933]
[1754808703261,0.21505576,810.06,809.37,2.75971933]
[1754808703465,0.21505576,810.06,809.38,1.07866301]
[1754808703761,0.21505576,810.06,809.43,2.75971933]
[1754808704061,0.00815397,810.06,809.44,1.07866301]
[1754808704256,0.5,810.31,809.5,2.75971933]
[1754808704561,0.5,810.31,810.16,1.66401827]
[1754808705560,0.5,810.31,810.15,1.66401827]
[1754808706559,0.5,810.31,810.18,1.66401827]
[1754808707259,0.21501656,810.28,810.17,1.66401827]
[1754808707463,0.21501656,810.28,810.15,1.66401827]
[1754808708265,0.21501656,810.28,810.16,1.66401827]
[1754808708561,0.21501656,810.28,810.13,1.66401827]
[1754808709061,0.21501656,810.28,810.18,1.66401827]
[1754808710063,0.21501656,810.28,810.19,1.66401827]
[1754808710461,0.21501656,810.28,810.18,1.66401827]
[1754808712267,0.21501656,810.28,810.19,1.66401827]
[1754808712466,0.21501656,810.28,810.18,1.66401827]
[1754808713370,0.21501656,810.28,810.14,1.66401827]
[1754808714673,0.21501656,810.28,810.12,1.66401827]
[1754808716582,0.21501656,810.28,810.1,1.66401827]
[1754808717384,0.21501656,810.28,810.11,1.66401827]
[1754808718284,0.21501656,810.28,810.13,1.66401827]
[1754808718782,0.21501656,810.28,810.14,1.66401827]
[1754808720791,0.21501656,810.28,810.13,1.66401827]
[1754808723388,0.21501656,810.28,810.18,1.66401827]
[1754808724288,0.21501656,810.28,810.19,1.66401827]
[1754808724785,0.21501656,810.28,810.24,1.66401827]
[1754808727693,0.21501656,810.28,810.25,1.66401827]
[1754808729992,0.21501656,810.28,810.26,1.66401827]
[1754808732192,0.21501656,810.28,810.27,1.66401827]
[1754808733495,0.21501656,810.28,809.75,2.75971933]
[1754808734893,0.21501656,810.28,810.24,1.66416396]
[1754808735396,0.21501656,810.28,810.25,1.66416396]
[1754808736292,0.21501656,810.28,810.26,1.66416396]
[1754808736495,0.21501656,810.28,810.2,1.66416396]
[1754808737398,0.21501656,810.28,810.21,1.66416396]
[1754808738596,0.21501656,810.28,810.18,1.66416396]
[1754808739494,0.21501656,810.28,810.19,1.66416396]
[1754808739698,0.21501656,810.28,810.18,1.66416396]
[1754808740399,0.21501656,810.28,810.19,1.66416396]
[1754808741400,0.21501656,810.28,810.2,1.66416396]
[1754808742602,0.21501656,810.28,810.22,1.66416396]
[1754808743003,0.21501656,810.28,810.2,1.66416396]
[1754808743503,0.21501656,810.28,810.21,1.66416396]
[1754808744404,0.21501656,810.28,810.23,1.66416396]
[1754808745000,0.21501656,810.28,810.25,1.66416396]
[1754808745402,0.21501656,810.28,810.26,1.66416396]
[1754808746603,0.21501656,810.28,809.64,2.75971933]
[1754808746803,0.21501656,810.28,809.69,2.75971933]
[1754808748304,0.21501656,810.28,809.68,2.75971933]
[1754808749001,0.21501656,810.28,809.75,2.75971933]
[1754808749901,0.21501656,810.28,809.78,2.75971933]
[1754808750405,0.21501656,810.28,809.76,2.75971933]
[1754808752003,0.21501656,810.28,809.77,2.75971933]
[1754808752605,0.21501656,810.28,809.78,2.75971933]
[1754808752807,0.00833751,810.28,809.78,2.75971933]
[1754808753004,0.5,810.37,809.85,2.75971933]
[1754808753509,0.5,810.37,809.91,2.75971933]
[1754808754104,0.5,810.37,809.92,2.75971933]
[1754808755107,0.346,810.35,809.93,2.75971933]
[1754808755304,0.5,810.37,809.93,2.75971933]
[1754808756108,0.21499995,810.27,809.93,2.75971933]
[1754808756808,0.21499995,810.27,809.95,2.75971933]
[1754808757203,0.21499995,810.27,809.96,2.75971933]
[1754808758207,0.21499995,810.27,809.97,2.75971933]
[1754808760407,0.21499995,810.27,809.9,2.75971933]
[1754808760808,0.21499995,810.27,809.89,2.75971933]
[1754808761309,0.21499995,810.27,809.9,2.75971933]
[1754808762312,0.21499995,810.27,809.91,2.75971933]
[1754808762807,0.21499995,810.27,809.16,5.48671553]
[1754808762808,0.82112603,811.22,809.89,2.75971933]
[1754808763012,0.82112603,811.22,810.44,2.7838603]
[1754808763212,0.82112603,811.29,809.89,2.75971933]
[1754808763409,0.82112603,811.29,809.88,2.75971933]
[1754808763612,0.5,810.43,809.88,2.75971933]
[1754808764115,0.5,810.43,809.81,2.75971933]
[1754808764414,0.5,810.43,809.8,2.75971933]
[1754808764916,0.5,810.43,809.84,2.75971933]
[1754808766012,0.21500195,810.29,809.84,2.75971933]
[1754808768517,0.21500195,810.29,809.83,2.75971933]
[1754808769019,0.21500195,810.29,809.84,2.75971933]
[1754808769718,0.21500195,810.29,809.83,2.75971933]
[1754808770822,0.21500195,810.29,809.89,2.75971933]
[1754808772724,0.21500195,810.29,809.87,2.75971933]
[1754808772920,0.00587732,810.29,809.87,2.75971933]
[1754808773222,0.5,810.5,809.91,2.75971933]
[1754808773721,0.5,810.5,809.92,2.75971933]
[1754808774327,0.5,810.5,809.9,2.75971933]
[1754808775426,0.5,810.5,809.94,2.75971933]
[1754808776027,0.2149787,810.37,809.94,2.75971933]
[1754808777028,0.2149787,810.37,809.93,2.75971933]
[1754808777425,0.2149787,810.37,809.92,2.75971933]
[1754808778525,0.2149787,810.37,809.93,2.75971933]
[1754808778926,0.2149787,810.37,809.92,2.75971933]
[1754808779428,0.2149787,810.37,809.91,2.75971933]
[1754808780029,0.2149787,810.37,809.92,2.75971933]
[1754808780533,0.2149787,810.37,809.89,2.75971933]
[1754808781135,0.2149787,810.37,809.88,2.75971933]
[1754808782237,0.2149787,810.37,809.91,2.75971933]
[1754808782937,0.497,810.49,809.91,2.75971933]
[1754808783237,0.497,810.49,809.92,2.75971933]
[1754808783636,0.497,810.49,809.91,2.75971933]
[1754808784238,0.497,810.49,809.93,2.75971933]
[1754808785035,0.5,810.5,810.25,1.6667571]
[1754808785234,0.5,810.5,810.15,1.6667571]
[1754808785435,0.495,810.65,810.41,1.6667571]
[1754808785636,1.09615333,812.13,809.63,3.86360707]
[1754808785637,0.5,810.71,810.45,1.6667571]
[1754808785836,0.5,810.71,810.54,1.6667571]
[1754808786035,0.5,810.81,810.56,1.6667571]
[1754808786334,0.2148891,810.65,810.53,1.6667571]
[1754808786540,0.5,810.81,810.48,1.6667571]
[1754808786836,0.21487583,810.75,810.46,1.6667571]
[1754808787039,0.21487583,810.75,810.45,1.6667571]
[1754808787637,0.21487583,810.75,810.42,1.6667571]
[1754808788339,0.21487583,810.75,810.4,1.6667571]
[1754808788740,0.21487583,810.75,810.43,1.6667571]
[1754808789443,0.21487583,810.75,810.42,1.6667571]
[1754808789638,0.21487583,810.75,810.53,1.6667571]
[1754808789839,0.21487583,810.75,810.55,1.6667571]
[1754808790038,0.21487583,810.75,810.63,1.6667571]
[1754808790237,0.21487583,810.75,809.65,2.75971933]
[1754808790439,0.21487583,810.75,810.73,1.66027737]
[1754808790742,0.21487583,810.75,810.72,1.66027737]
[1754808790943,0.21487583,810.75,810.71,1.66027737]
[1754808791345,0.21487583,810.75,810.7,1.66027737]
[1754808791544,0.21487583,810.75,810.72,1.66027737]
[1754808791844,0.21487583,810.75,810.7,1.66027737]
[1754808792441,0.21487583,810.75,810.69,1.66027737]
[1754808794344,0.21487583,810.75,810.68,1.66027737]
[1754808794946,0.21487583,810.75,810.73,1.66027737]
[1754808795445,0.21487583,810.75,810.72,1.66027737]
[1754808795948,0.21487583,810.75,810.68,1.10423897]
[1754808796245,0.21487583,810.75,810.69,1.10423897]
[1754808796443,0.21487583,810.75,810.72,1.10423897]
[1754808798444,0.21487583,810.75,810.71,1.10423897]
[1754808799049,0.21487583,810.75,810.7,1.10423897]
[1754808799450,0.21487583,810.75,810.69,1.10423897]
[1754808800351,0.21487583,810.75,810.68,1.10423897]
[1754808801051,0.21487583,810.75,810.58,1.10423897]
[1754808801649,0.21487583,810.75,810.72,1.10423897]
[1754808801851,0.21487583,810.75,810.68,1.10423897]
[1754808802150,0.21487583,810.75,810.67,1.10423897]
[1754808802749,0.21487583,810.75,810.68,1.10423897]
[1754808803149,0.21487583,810.75,810.72,1.10423897]
[1754808803945,0.21487583,810.75,810.63,1.66027737]
[1754808804149,0.21487583,810.75,810.59,1.66027737]
[1754808805450,0.21487583,810.75,810.7,1.10284548]
[1754808805750,0.21487583,810.75,810.68,1.10284548]
[1754808806451,0.21487583,810.75,810.69,1.10284548]
[1754808809153,0.21487583,810.75,810.63,1.10284548]
[1754808809353,0.21487583,810.75,810.59,1.10284548]
[1754808809549,0.21487583,810.75,810.61,1.66027737]
[1754808809751,0.21487583,810.75,810.7,1.66027737]
[1754808811753,0.21487583,810.75,810.69,1.66027737]
[1754808812651,0.21487583,810.75,810.57,1.66027737]
[1754808812849,0.21487583,810.75,810.53,1.66027737]
[1754808813451,0.21487583,810.75,810.52,1.66027737]
[1754808815150,0.21487583,810.75,809.58,2.75971933]
[1754808815151,0.21487583,810.75,810.53,1.66027737]
[1754808815653,0.21487583,810.75,810.54,1.66027737]
[1754808816353,0.21487583,810.75,810.53,1.66027737]
[1754808816655,0.21487583,810.75,810.55,1.66027737]
[1754808817457,0.21487583,810.75,810.54,1.66027737]
[1754808817653,0.21487583,810.75,810.64,1.10287078]
[1754808817856,0.21487583,810.75,810.62,1.10287078]
[1754808818153,0.21487583,810.75,810.63,1.10287078]
[1754808818557,0.21487583,810.75,810.66,1.10287078]
[1754808819054,0.21487583,810.75,810.65,1.10287078]
[1754808819257,0.21487583,810.75,810.66,1.10287078]
[1754808819655,0.21487583,810.75,810.65,1.10287078]
[1754808821556,0.21487583,810.75,810.66,1.10287078]
[1754808822055,0.21487583,810.75,810.48,1.66027737]
[1754808822056,0.296,810.71,810.56,1.10287078]
[1754808822457,0.296,810.71,810.57,1.10287078]
[1754808822858,0.407,810.71,810.57,1.10287078]
[1754808823059,0.35,810.63,810.57,1.10287078]
[1754808823557,0.5,810.61,810.55,1.10287078]
[1754808824062,0.5,810.58,810.53,1.10287078]
[1754808824259,0.5,810.54,810.53,1.10287078]
[1754808824557,0.5,810.54,810.52,1.10287078]
[1754808824764,0.5,810.54,810.53,1.10287078]
[1754808825159,0.5,810.54,810.44,1.10287078]
[1754808825365,0.5,810.54,810.41,1.10287078]
[1754808825559,0.5,810.44,810.41,1.10287078]
[1754808826261,0.5,810.44,810.24,1.66027737]
[1754808826461,0.5,810.44,809.59,2.75971933]
[1754808826462,0.5,810.44,810.37,1.1047875]
[1754808826659,0.5,810.44,810.39,1.1047875]
[1754808827362,0.5,810.44,810.41,1.1047875]
[1754808827661,0.5,810.44,810.39,1.1047875]
[1754808829462,0.5,810.44,810.38,1.1047875]
[1754808833467,0.5,810.44,810.37,1.1047875]
[1754808833872,0.5,810.44,810.21,1.66027737]
[1754808833873,0.5,810.44,810.42,1.1047875]
[1754808834067,0.21487583,810.75,810.42,0.6047875]
[1754808835073,0.21487583,810.75,810.26,1.66027737]
[1754808835673,0.21487583,810.75,810.25,1.66027737]
[1754808836068,0.21487583,810.75,810.23,1.66027737]
[1754808836273,0.5,810.4,810.25,1.66027737]
[1754808836568,0.5,810.4,810.26,1.66027737]
[1754808838476,0.5,810.4,810.23,1.66027737]
[1754808838876,0.5,810.4,810.25,1.66027737]
[1754808839385,0.5,810.4,810.26,1.66027737]
[1754808840284,0.5,810.4,810.25,1.66027737]
[1754808840480,0.5,810.4,810.24,1.66027737]
[1754808840679,0.5,810.4,810.26,1.66027737]
[1754808843192,0.5,810.4,810.23,1.66027737]
[1754808846290,0.5,810.4,810.24,1.66027737]
[1754808846494,0.5,810.4,810.25,1.66027737]
[1754808846790,0.5,810.4,810.23,1.66027737]
[1754808848592,0.5,810.4,810.25,1.66027737]
[1754808851893,0.5,810.4,810.23,1.66027737]
[1754808852098,0.5,810.4,810.14,1.66027737]
[1754808852999,0.5,810.4,810.15,1.66027737]
[1754808853196,0.5,810.4,810.14,1.66027737]
[1754808855999,0.5,810.4,810.13,1.66027737]
[1754808856402,0.5,810.4,810.14,1.66027737]
[1754808857601,0.5,810.4,810.12,1.66027737]
[1754808858301,0.5,810.4,810.13,1.66027737]
[1754808859505,0.5,810.4,810.12,1.66027737]
[1754808859703,0.297,810.32,810.01,1.66027737]
[1754808859903,0.297,810.32,810.09,1.66027737]
[1754808860106,0.297,810.32,810.1,1.66027737]
[1754808860307,0.297,810.32,810.13,1.66027737]
[1754808860508,0.297,810.32,810.11,1.66027737]
[1754808860802,0.297,810.32,810.08,1.66027737]
[1754808861603,0.5,810.39,810.07,1.66027737]
[1754808861904,0.297,810.38,810.07,1.66027737]
[1754808862106,0.297,810.38,810.06,1.66027737]
[1754808862507,0.297,810.38,810.05,1.66027737]
[1754808863206,0.477,810.35,810.05,1.66027737]
[1754808863409,0.297,810.38,810.05,1.66027737]
[1754808864407,0.297,810.38,810.06,1.66027737]
[1754808864912,0.352,810.07,809.36,1.66027737]
[1754808865112,0.352,810.07,809.71,1.10541079]
[1754808865311,0.352,810.07,809.7,1.10541079]
[1754808865811,0.5,810.15,809.78,1.10541079]
[1754808866111,0.5,810.16,809.83,1.10541079]
[1754808866308,0.352,810.15,809.83,1.10541079]
[1754808866512,0.5,810.21,809.83,1.10541079]
[1754808868310,0.5,810.21,809.82,1.10541079]
[1754808868716,0.5,810.21,809.85,1.10541079]
[1754808870417,0.5,810.21,809.86,1.10541079]
[1754808871017,0.5,810.21,809.99,1.10541079]
[1754808871509,0.5,810.21,810.0,1.10541079]
[1754808872616,0.5,810.21,810.01,1.10541079]
[1754808873418,0.5,810.21,810.02,1.10541079]
[1754808874620,0.5,810.21,810.04,1.10541079]
[1754808875322,0.5,810.21,810.06,1.10541079]
[1754808875717,0.5,810.21,810.16,1.10541079]
[1754808876421,0.5,810.21,810.17,1.10541079]
[1754808876718,0.5,810.21,810.15,1.10541079]
[1754808877619,0.5,810.21,810.16,1.10541079]
[1754808878517,0.5,810.21,810.17,1.10541079]
[1754808879327,0.5,810.21,810.18,1.10541079]
[1754808880623,0.5,810.21,810.19,1.10541079]
[1754808881024,0.5,810.21,810.2,1.10541079]
[1754808882425,0.5,810.21,810.05,1.66027737]
[1754808882724,0.5,810.21,810.2,1.10913293]
[1754808883320,0.5,810.21,810.18,1.10913293]
[1754808884320,0.5,810.21,810.2,1.10913293]
[1754808884526,0.5,810.21,810.06,1.66027737]
[1754808884825,0.5,810.21,810.2,1.10950995]
[1754808885822,0.5,810.21,810.02,1.10950995]
[1754808886323,0.5,810.21,810.03,1.10950995]
[1754808886522,0.5,810.21,810.07,1.10950995]
[1754808886725,0.5,810.21,808.62,5.48671553]
[1754808886726,0.5,810.27,810.11,1.10950995]
[1754808886926,0.5,810.29,810.16,1.10950995]
[1754808887224,0.5,810.29,810.19,1.10950995]
[1754808887524,0.5,810.3,810.18,1.10950995]
[1754808888135,0.5,810.3,810.19,1.10950995]
[1754808888736,0.5,810.3,808.45,4.93860707]
[1754808888737,0.5,810.3,810.28,1.10950995]
[1754808889033,0.5,810.3,810.2,1.66027737]
[1754808890935,0.5,810.3,810.19,1.66027737]
[1754808892835,0.5,810.3,810.21,1.66027737]
[1754808893034,0.5,810.3,810.2,1.66027737]
[1754808895236,0.5,810.3,810.13,1.66027737]
[1754808895436,0.5,810.3,810.14,1.66027737]
[1754808898441,0.5,810.3,810.15,1.66027737]
[1754808899938,0.5,810.3,810.17,1.66027737]
[1754808901238,0.5,810.3,810.18,1.66027737]
[1754808902946,0.5,810.3,810.19,1.66027737]
[1754808904243,0.5,810.3,810.18,1.66027737]
[1754808905046,0.5,810.3,810.25,1.66027737]
[1754808905245,0.5,810.3,810.28,1.66027737]
[1754808905548,0.5,810.3,810.29,1.66027737]
[1754808905745,0.5,810.3,810.28,1.66027737]
[1754808906348,0.5,810.3,810.29,1.66027737]
[1754808907247,0.5,810.3,809.71,2.75971933]
[1754808907551,0.5,810.3,809.72,2.75971933]
[1754808908751,0.5,810.3,809.73,2.75971933]
[1754808909351,0.5,810.3,809.72,2.75971933]
[1754808909647,0.5,810.3,809.74,2.75971933]
[1754808910152,0.5,810.3,809.75,2.75971933]
[1754808912247,0.5,810.3,809.76,2.75971933]
[1754808912853,0.5,810.3,809.75,2.75971933]
[1754808914356,0.5,810.3,809.79,2.75971933]
[1754808915055,0.5,810.3,809.74,2.75971933]
[1754808915551,0.5,810.3,809.72,2.75971933]
[1754808916457,0.5,810.3,809.43,3.86360707]
[1754808916458,0.5,810.3,809.73,2.75971933]
[1754808916958,0.5,810.3,810.29,1.66668404]
[1754808917158,0.5,810.3,810.15,1.66668404]
[1754808917358,0.5,810.3,810.27,1.11132164]
[1754808917760,0.21487583,810.75,810.26,0.61132164]
[1754808917956,0.21487583,810.75,810.04,1.66668404]
[1754808918459,0.5,810.16,810.02,1.66668404]
[1754808918656,0.292,810.14,809.94,1.66668404]
[1754808918959,0.292,810.14,809.93,1.66668404]
[1754808919555,0.5,810.14,809.93,1.66668404]
[1754808920457,0.5,810.14,809.92,1.66668404]
[1754808920661,0.292,810.14,809.92,1.66668404]
[1754808921559,0.5,810.14,809.92,1.66668404]
[1754808921963,0.5,810.14,809.9,1.66668404]
[1754808922165,0.5,810.0,809.88,1.66668404]
[1754808922463,0.5,810.0,809.87,1.66668404]
[1754808922861,0.5,809.98,809.87,1.66668404]
[1754808924266,0.5,809.98,809.86,1.66668404]
[1754808924564,0.5,809.98,809.87,1.66668404]
[1754808925965,0.5,809.98,809.82,1.66668404]
[1754808926168,0.5,809.98,809.0,2.75971933]
[1754808926169,0.5,809.98,809.92,1.66668404]
[1754808926368,0.5,809.98,808.0,5.48671553]
[1754808926369,0.5,809.98,809.91,1.66668404]
[1754808926570,0.5,809.98,809.87,1.66668404]
[1754808927371,0.5,809.98,809.19,2.75971933]
[1754808927372,0.5,809.98,809.89,1.66668404]
[1754808928469,0.5,809.98,809.91,1.66668404]
[1754808929370,0.5,809.98,809.9,1.66668404]
[1754808930067,0.5,809.94,809.86,1.66668404]
[1754808930273,0.5,809.94,809.82,1.66668404]
[1754808930973,0.5,809.87,809.77,1.66668404]
[1754808931169,0.423,809.87,809.77,1.66668404]
[1754808931370,0.423,809.87,809.76,1.66668404]
[1754808931868,0.423,809.87,809.11,2.75971933]
[1754808931869,0.423,809.87,809.79,1.66668404]
[1754808932074,0.423,809.87,809.74,1.66668404]
[1754808932272,0.423,809.87,809.7,1.66668404]
[1754808933271,0.423,809.87,809.69,1.66668404]
[1754808933772,0.423,809.87,809.68,1.66668404]
[1754808935171,0.423,809.87,809.67,1.66668404]
[1754808935669,0.423,809.87,809.68,1.66668404]
[1754808935872,0.5,809.94,809.36,1.66668404]
[1754808936075,0.422,809.93,809.36,1.66668404]
[1754808936373,0.312,809.93,809.36,1.66668404]
[1754808936575,0.312,809.93,809.39,1.66668404]
[1754808937376,0.312,809.93,809.38,1.66668404]
[1754808937676,0.312,809.93,809.37,1.66668404]
[1754808938281,0.21487583,810.75,809.37,1.66668404]
[1754808939282,0.21487583,810.75,809.36,1.66668404]
[1754808939482,0.5,809.86,809.36,1.66668404]
[1754808941981,0.5,809.84,809.36,1.66668404]
[1754808942283,0.5,809.84,809.38,1.66668404]
[1754808943584,0.5,809.83,809.38,1.66668404]
[1754808943981,0.5,809.83,809.37,1.66668404]
[1754808945782,0.5,809.85,809.72,1.66668404]
[1754808946684,0.5,809.85,809.73,1.66668404]
[1754808947679,0.5,809.85,809.76,1.66668404]
[1754808949484,0.5,809.85,809.71,1.66668404]
[1754808949779,0.5,809.85,809.72,1.66668404]
[1754808950281,0.5,809.85,809.71,1.66668404]
[1754808950684,0.5,809.85,809.72,1.66668404]
[1754808950881,0.5,809.85,809.7,1.66668404]
[1754808954283,0.5,809.85,809.84,1.10671892]
[1754808955486,0.5,809.85,809.69,1.66668404]
[1754808956583,0.5,809.85,809.68,1.66668404]
[1754808957483,0.5,809.85,809.84,1.10686405]
[1754808957688,0.21487583,810.75,809.02,2.75971933]
[1754808957689,0.21487583,810.75,809.65,1.66668404]